{"text_format":"3","workbook":"xlsx","n_sheets":5,"sheets":["Blatt1","Budgetübersicht","Budgetzusammenfassung","Monatliche Ausgaben","Zusätzliche Daten"],"not_rendered":{"charts":1,"defined_names":7,"pivot_tables":2},"read":"whole","date_system":"1900"}

{"sheet":"Blatt1","index":0,"n_rows":12,"n_cols":3,"rows_kept":12,"hidden":true}
["Berechnetes Feld"]
["Lösungsreihenfolge","Feld","Formel"]
[]
["Berechnetes Element"]
["Lösungsreihenfolge","Posten","Formel"]
[]
[]
["Notiz:","Wenn eine Zelle durch mehr als eine Formel aktualisiert wird,"]
[null,"wird der Wert durch die Formel mit der letzten Lösungsreihenfolge festgelegt."]
[]
[null,"So ändern Sie die Lösungsreihenfolge für mehrere berechnete Elemente oder Felder,"]
[null,"klicken Sie auf der Registerkarte Optionen in der Gruppe Berechnungen auf Felder, Elemente und Sätze und dann auf Lösungsreihenfolge."]

{"sheet":"Budgetübersicht","index":1,"n_rows":16,"n_cols":8,"rows_kept":16,"merged":[[0,1,0,6],[1,1,1,2],[3,1,3,2],[4,1,4,2],[5,1,5,2]]}
[null,"BUDGETÜBERSICHT",{"$nulls":5}," "]
[null,"Saldo"]
[]
[null,"Geplanter Saldo",null,{"$f":"Erwartete_Einkünfte-Erwartete_Ausgaben","v":{"v":1585,"d":"1,585 €"}},null,"Erwartet abzüglich Ausgaben"]
[null,"Tatsächlicher Saldo ",null,{"$f":"Aktuelles_Einkommen-Tatsächliche_Ausgaben","v":{"v":1740,"d":"1,740 €"}},null,"Tatsächlich abzüglich Ausgaben"]
[null,"Differenz",null,{"$f":"D5-D4","v":{"v":155,"d":"155 €"}},null,"Tatsächlich abzüglich erwartet"]
[]
[null,"Einkünfte",{"$nulls":3},"Ausgaben"]
[]
[null,null,"Geplant","Tatsächlich",null,"Geplant","Tatsächlich"]
[null,"Einkünfte 1",{"v":6000,"d":"6,000 €"},{"v":5800,"d":"5,800 €"},null,{"$f":"SUM(Montliche_Ausgaben_Tabelle[Erwartete Kosten])","v":{"v":7915,"d":"7,915 €"}},{"$f":"SUM(Montliche_Ausgaben_Tabelle[Tatsächliche Kosten])","v":{"v":7860,"d":"7,860 €"}}]
[null,"Einkünfte 2",{"v":1000,"d":"1,000 €"},{"v":2300,"d":"2,300 €"}]
[null,"Zusatzeinkünfte",{"v":2500,"d":"2,500 €"},{"v":1500,"d":"1,500 €"}]
[null,"Gesamteinnahmen",{"$f":"SUM(C11:C13)","v":{"v":9500,"d":"9,500 €"}},{"$f":"SUM(D11:D13)","v":{"v":9600,"d":"9,600 €"}}]
[]
[null,"Aufschlüsselung der tatsächlichen Ausgaben"]

{"sheet":"Budgetzusammenfassung","index":2,"n_rows":45,"n_cols":7,"rows_kept":45,"merged":[[0,1,0,5]]}
[null,"BUDGETZUSAMMENFASSUNG",{"$nulls":4}," "]
[]
[null,"Kategorien","Erwartete Kosten ","Tatsächliche Kosten ","Differenz "]
[null,"Kinder",{"v":140,"d":"140 €"},{"v":140,"d":"140 €"},{"v":0,"d":"0 €"}]
[null,"Außerhalb des Lehrplans stattfindende Aktivitäten",{"v":40,"d":"40 €"},{"v":40,"d":"40 €"},{"v":0,"d":"0 €"}]
[null,"Gesundheit",null,null,{"v":0,"d":"0 €"}]
[null,"Schulmaterialien",null,null,{"v":0,"d":"0 €"}]
[null,"Unterrichtsgebühren",{"v":100,"d":"100 €"},{"v":100,"d":"100 €"},{"v":0,"d":"0 €"}]
[]
[null,"Unterhaltung",{"v":400,"d":"400 €"},{"v":358,"d":"358 €"},{"v":42,"d":"42 €"}]
[null,"Filme",{"v":50,"d":"50 €"},{"v":28,"d":"28 €"},{"v":22,"d":"22 €"}]
[null,"Konzerte",{"v":50,"d":"50 €"},{"v":40,"d":"40 €"},{"v":10,"d":"10 €"}]
[null,"Musik (CDs, Downloads usw.)",{"v":50,"d":"50 €"},{"v":30,"d":"30 €"},{"v":20,"d":"20 €"}]
[null,"Sportveranstaltungen",{"v":0,"d":"0 €"},{"v":40,"d":"40 €"},{"v":-40,"d":"-40 €"}]
[null,"Theater",{"v":200,"d":"200 €"},{"v":150,"d":"150 €"},{"v":50,"d":"50 €"}]
[null,"Video/DVD (Ausleihe)",{"v":30,"d":"30 €"},{"v":20,"d":"20 €"},{"v":10,"d":"10 €"}]
[null,"Video/DVD (Kauf)",{"v":20,"d":"20 €"},{"v":50,"d":"50 €"},{"v":-30,"d":"-30 €"}]
[]
[null,"Essen",{"v":1100,"d":"1,100 €"},{"v":1320,"d":"1,320 €"},{"v":-220,"d":"-220 €"}]
[]
[null,"Geschenke und Spenden",{"v":100,"d":"100 €"},{"v":125,"d":"125 €"},{"v":-25,"d":"-25 €"}]
[null,"Geschenk 1",null,null,{"v":0,"d":"0 €"}]
[null,"Geschenk 2",null,null,{"v":0,"d":"0 €"}]
[null,"Spenden 1",{"v":75,"d":"75 €"},{"v":100,"d":"100 €"},{"v":-25,"d":"-25 €"}]
[null,"Spenden 2",{"v":25,"d":"25 €"},{"v":25,"d":"25 €"},{"v":0,"d":"0 €"}]
[]
[null,"Wohnen",{"v":2830,"d":"2,830 €"},{"v":2702,"d":"2,702 €"},{"v":-72,"d":"-72 €"}]
[]
[null,"Versicherungen",{"v":900,"d":"900 €"},{"v":900,"d":"900 €"},{"v":0,"d":"0 €"}]
[]
[null,"Kredite",{"v":200,"d":"200 €"},{"v":200,"d":"200 €"},{"v":0,"d":"0 €"}]
[]
[null,"Persönliche Pflege",{"v":150,"d":"150 €"},{"v":140,"d":"140 €"},{"v":10,"d":"10 €"}]
[]
[null,"Haustiere",{"v":170,"d":"170 €"},{"v":100,"d":"100 €"},{"v":70,"d":"70 €"}]
[]
[null,"Steuern",{"v":300,"d":"300 €"},{"v":300,"d":"300 €"},{"v":0,"d":"0 €"}]
[]
[null,"Verkehrsmittel",{"v":1425,"d":"1,425 €"},{"v":1375,"d":"1,375 €"},{"v":50,"d":"50 €"}]
[]
[null,"Spareinlagen",{"v":200,"d":"200 €"},{"v":200,"d":"200 €"},{"v":0,"d":"0 €"}]
[null,"Altersvorsorgekonto",null,null,{"v":0,"d":"0 €"}]
[null,"Anlagekonto",{"v":200,"d":"200 €"},{"v":200,"d":"200 €"},{"v":0,"d":"0 €"}]
[]
[null,"Grand Total",{"v":7915,"d":"7,915 €"},{"v":7860,"d":"7,860 €"},{"v":-145,"d":"-145 €"}]

{"sheet":"Monatliche Ausgaben","index":3,"n_rows":61,"n_cols":8,"rows_kept":61}
[null,"MONATLICHE AUSGABEN",{"$nulls":5}," "]
[null,"Beschreibung","Kategorie","Erwartete Kosten","Tatsächliche Kosten","Differenz","Übersicht über die tatsächlichen Kosten"]
[null,"Außerhalb des Lehrplans stattfindende Aktivitäten","Kinder",{"v":40,"d":"40 €"},{"v":40,"d":"40 €"},{"$f":"IF(OR(Montliche_Ausgaben_Tabelle[[#This Row],[Erwartete Kosten]]=\"\",Montliche_Ausgaben_Tabelle[[#This Row],[Tatsächliche Kosten]]=\"\"),\"\",Montliche_Ausgaben_Tabelle[[#This Row],[Erwartete Kosten]]-Montliche_Ausgaben_Tabelle[[#This Row],[Tatsächliche Kosten]])","v":{"v":0,"d":"0 €"}},{"$f":"Montliche_Ausgaben_Tabelle[[#This Row],[Tatsächliche Kosten]]","v":40}]
[null,"Gesundheit","Kinder",null,null,{"$f":"IF(OR(Montliche_Ausgaben_Tabelle[[#This Row],[Erwartete Kosten]]=\"\",Montliche_Ausgaben_Tabelle[[#This Row],[Tatsächliche Kosten]]=\"\"),\"\",Montliche_Ausgaben_Tabelle[[#This Row],[Erwartete Kosten]]-Montliche_Ausgaben_Tabelle[[#This Row],[Tatsächliche Kosten]])","v":""},{"$f":"Montliche_Ausgaben_Tabelle[[#This Row],[Tatsächliche Kosten]]","v":0}]
[null,"Schulmaterialien","Kinder",null,null,{"$f":"IF(OR(Montliche_Ausgaben_Tabelle[[#This Row],[Erwartete Kosten]]=\"\",Montliche_Ausgaben_Tabelle[[#This Row],[Tatsächliche Kosten]]=\"\"),\"\",Montliche_Ausgaben_Tabelle[[#This Row],[Erwartete Kosten]]-Montliche_Ausgaben_Tabelle[[#This Row],[Tatsächliche Kosten]])","v":""},{"$f":"Montliche_Ausgaben_Tabelle[[#This Row],[Tatsächliche Kosten]]","v":0}]
[null,"Unterrichtsgebühren","Kinder",{"v":100,"d":"100 €"},{"v":100,"d":"100 €"},{"$f":"IF(OR(Montliche_Ausgaben_Tabelle[[#This Row],[Erwartete Kosten]]=\"\",Montliche_Ausgaben_Tabelle[[#This Row],[Tatsächliche Kosten]]=\"\"),\"\",Montliche_Ausgaben_Tabelle[[#This Row],[Erwartete Kosten]]-Montliche_Ausgaben_Tabelle[[#This Row],[Tatsächliche Kosten]])","v":{"v":0,"d":"0 €"}},{"$f":"Montliche_Ausgaben_Tabelle[[#This Row],[Tatsächliche Kosten]]","v":100}]
[null,"Konzerte","Unterhaltung",{"v":50,"d":"50 €"},{"v":40,"d":"40 €"},{"$f":"IF(OR(Montliche_Ausgaben_Tabelle[[#This Row],[Erwartete Kosten]]=\"\",Montliche_Ausgaben_Tabelle[[#This Row],[Tatsächliche Kosten]]=\"\"),\"\",Montliche_Ausgaben_Tabelle[[#This Row],[Erwartete Kosten]]-Montliche_Ausgaben_Tabelle[[#This Row],[Tatsächliche Kosten]])","v":{"v":10,"d":"10 €"}},{"$f":"Montliche_Ausgaben_Tabelle[[#This Row],[Tatsächliche Kosten]]","v":40}]
[null,"Theater","Unterhaltung",{"v":200,"d":"200 €"},{"v":150,"d":"150 €"},{"$f":"IF(OR(Montliche_Ausgaben_Tabelle[[#This Row],[Erwartete Kosten]]=\"\",Montliche_Ausgaben_Tabelle[[#This Row],[Tatsächliche Kosten]]=\"\"),\"\",Montliche_Ausgaben_Tabelle[[#This Row],[Erwartete Kosten]]-Montliche_Ausgaben_Tabelle[[#This Row],[Tatsächliche Kosten]])","v":{"v":50,"d":"50 €"}},{"$f":"Montliche_Ausgaben_Tabelle[[#This Row],[Tatsächliche Kosten]]","v":150}]
[null,"Filme","Unterhaltung",{"v":50,"d":"50 €"},{"v":28,"d":"28 €"},{"$f":"IF(OR(Montliche_Ausgaben_Tabelle[[#This Row],[Erwartete Kosten]]=\"\",Montliche_Ausgaben_Tabelle[[#This Row],[Tatsächliche Kosten]]=\"\"),\"\",Montliche_Ausgaben_Tabelle[[#This Row],[Erwartete Kosten]]-Montliche_Ausgaben_Tabelle[[#This Row],[Tatsächliche Kosten]])","v":{"v":22,"d":"22 €"}},{"$f":"Montliche_Ausgaben_Tabelle[[#This Row],[Tatsächliche Kosten]]","v":28}]
[null,"Musik (CDs, Downloads usw.)","Unterhaltung",{"v":50,"d":"50 €"},{"v":30,"d":"30 €"},{"$f":"IF(OR(Montliche_Ausgaben_Tabelle[[#This Row],[Erwartete Kosten]]=\"\",Montliche_Ausgaben_Tabelle[[#This Row],[Tatsächliche Kosten]]=\"\"),\"\",Montliche_Ausgaben_Tabelle[[#This Row],[Erwartete Kosten]]-Montliche_Ausgaben_Tabelle[[#This Row],[Tatsächliche Kosten]])","v":{"v":20,"d":"20 €"}},{"$f":"Montliche_Ausgaben_Tabelle[[#This Row],[Tatsächliche Kosten]]","v":30}]
[null,"Sportveranstaltungen","Unterhaltung",{"v":0,"d":"0 €"},{"v":40,"d":"40 €"},{"$f":"IF(OR(Montliche_Ausgaben_Tabelle[[#This Row],[Erwartete Kosten]]=\"\",Montliche_Ausgaben_Tabelle[[#This Row],[Tatsächliche Kosten]]=\"\"),\"\",Montliche_Ausgaben_Tabelle[[#This Row],[Erwartete Kosten]]-Montliche_Ausgaben_Tabelle[[#This Row],[Tatsächliche Kosten]])","v":{"v":-40,"d":"-40 €"}},{"$f":"Montliche_Ausgaben_Tabelle[[#This Row],[Tatsächliche Kosten]]","v":40}]
[null,"Video/DVD (Kauf)","Unterhaltung",{"v":20,"d":"20 €"},{"v":50,"d":"50 €"},{"$f":"IF(OR(Montliche_Ausgaben_Tabelle[[#This Row],[Erwartete Kosten]]=\"\",Montliche_Ausgaben_Tabelle[[#This Row],[Tatsächliche Kosten]]=\"\"),\"\",Montliche_Ausgaben_Tabelle[[#This Row],[Erwartete Kosten]]-Montliche_Ausgaben_Tabelle[[#This Row],[Tatsächliche Kosten]])","v":{"v":-30,"d":"-30 €"}},{"$f":"Montliche_Ausgaben_Tabelle[[#This Row],[Tatsächliche Kosten]]","v":50}]
[null,"Video/DVD (Ausleihe)","Unterhaltung",{"v":30,"d":"30 €"},{"v":20,"d":"20 €"},{"$f":"IF(OR(Montliche_Ausgaben_Tabelle[[#This Row],[Erwartete Kosten]]=\"\",Montliche_Ausgaben_Tabelle[[#This Row],[Tatsächliche Kosten]]=\"\"),\"\",Montliche_Ausgaben_Tabelle[[#This Row],[Erwartete Kosten]]-Montliche_Ausgaben_Tabelle[[#This Row],[Tatsächliche Kosten]])","v":{"v":10,"d":"10 €"}},{"$f":"Montliche_Ausgaben_Tabelle[[#This Row],[Tatsächliche Kosten]]","v":20}]
[null,"Ausgehen","Essen",{"v":1000,"d":"1,000 €"},{"v":1200,"d":"1,200 €"},{"$f":"IF(OR(Montliche_Ausgaben_Tabelle[[#This Row],[Erwartete Kosten]]=\"\",Montliche_Ausgaben_Tabelle[[#This Row],[Tatsächliche Kosten]]=\"\"),\"\",Montliche_Ausgaben_Tabelle[[#This Row],[Erwartete Kosten]]-Montliche_Ausgaben_Tabelle[[#This Row],[Tatsächliche Kosten]])","v":{"v":-200,"d":"-200 €"}},{"$f":"Montliche_Ausgaben_Tabelle[[#This Row],[Tatsächliche Kosten]]","v":1200}]
[null,"Lebensmittel","Essen",{"v":100,"d":"100 €"},{"v":120,"d":"120 €"},{"$f":"IF(OR(Montliche_Ausgaben_Tabelle[[#This Row],[Erwartete Kosten]]=\"\",Montliche_Ausgaben_Tabelle[[#This Row],[Tatsächliche Kosten]]=\"\"),\"\",Montliche_Ausgaben_Tabelle[[#This Row],[Erwartete Kosten]]-Montliche_Ausgaben_Tabelle[[#This Row],[Tatsächliche Kosten]])","v":{"v":-20,"d":"-20 €"}},{"$f":"Montliche_Ausgaben_Tabelle[[#This Row],[Tatsächliche Kosten]]","v":120}]
[null,"Spenden 1","Geschenke und Spenden",{"v":75,"d":"75 €"},{"v":100,"d":"100 €"},{"$f":"IF(OR(Montliche_Ausgaben_Tabelle[[#This Row],[Erwartete Kosten]]=\"\",Montliche_Ausgaben_Tabelle[[#This Row],[Tatsächliche Kosten]]=\"\"),\"\",Montliche_Ausgaben_Tabelle[[#This Row],[Erwartete Kosten]]-Montliche_Ausgaben_Tabelle[[#This Row],[Tatsächliche Kosten]])","v":{"v":-25,"d":"-25 €"}},{"$f":"Montliche_Ausgaben_Tabelle[[#This Row],[Tatsächliche Kosten]]","v":100}]
[null,"Spenden 2","Geschenke und Spenden",{"v":25,"d":"25 €"},{"v":25,"d":"25 €"},{"$f":"IF(OR(Montliche_Ausgaben_Tabelle[[#This Row],[Erwartete Kosten]]=\"\",Montliche_Ausgaben_Tabelle[[#This Row],[Tatsächliche Kosten]]=\"\"),\"\",Montliche_Ausgaben_Tabelle[[#This Row],[Erwartete Kosten]]-Montliche_Ausgaben_Tabelle[[#This Row],[Tatsächliche Kosten]])","v":{"v":0,"d":"0 €"}},{"$f":"Montliche_Ausgaben_Tabelle[[#This Row],[Tatsächliche Kosten]]","v":25}]
[null,"Geschenk 1","Geschenke und Spenden",null,null,{"$f":"IF(OR(Montliche_Ausgaben_Tabelle[[#This Row],[Erwartete Kosten]]=\"\",Montliche_Ausgaben_Tabelle[[#This Row],[Tatsächliche Kosten]]=\"\"),\"\",Montliche_Ausgaben_Tabelle[[#This Row],[Erwartete Kosten]]-Montliche_Ausgaben_Tabelle[[#This Row],[Tatsächliche Kosten]])","v":""},{"$f":"Montliche_Ausgaben_Tabelle[[#This Row],[Tatsächliche Kosten]]","v":0}]
[null,"Geschenk 2","Geschenke und Spenden",null,null,{"$f":"IF(OR(Montliche_Ausgaben_Tabelle[[#This Row],[Erwartete Kosten]]=\"\",Montliche_Ausgaben_Tabelle[[#This Row],[Tatsächliche Kosten]]=\"\"),\"\",Montliche_Ausgaben_Tabelle[[#This Row],[Erwartete Kosten]]-Montliche_Ausgaben_Tabelle[[#This Row],[Tatsächliche Kosten]])","v":""},{"$f":"Montliche_Ausgaben_Tabelle[[#This Row],[Tatsächliche Kosten]]","v":0}]
[null,"Kabel/Satellit","Wohnen",{"v":100,"d":"100 €"},{"v":100,"d":"100 €"},{"$f":"IF(OR(Montliche_Ausgaben_Tabelle[[#This Row],[Erwartete Kosten]]=\"\",Montliche_Ausgaben_Tabelle[[#This Row],[Tatsächliche Kosten]]=\"\"),\"\",Montliche_Ausgaben_Tabelle[[#This Row],[Erwartete Kosten]]-Montliche_Ausgaben_Tabelle[[#This Row],[Tatsächliche Kosten]])","v":{"v":0,"d":"0 €"}},{"$f":"Montliche_Ausgaben_Tabelle[[#This Row],[Tatsächliche Kosten]]","v":100}]
[null,"Strom","Wohnen",{"v":45,"d":"45 €"},{"v":50,"d":"50 €"},{"$f":"IF(OR(Montliche_Ausgaben_Tabelle[[#This Row],[Erwartete Kosten]]=\"\",Montliche_Ausgaben_Tabelle[[#This Row],[Tatsächliche Kosten]]=\"\"),\"\",Montliche_Ausgaben_Tabelle[[#This Row],[Erwartete Kosten]]-Montliche_Ausgaben_Tabelle[[#This Row],[Tatsächliche Kosten]])","v":{"v":-5,"d":"-5 €"}},{"$f":"Montliche_Ausgaben_Tabelle[[#This Row],[Tatsächliche Kosten]]","v":50}]
[null,"Gas","Wohnen",{"v":300,"d":"300 €"},{"v":400,"d":"400 €"},{"$f":"IF(OR(Montliche_Ausgaben_Tabelle[[#This Row],[Erwartete Kosten]]=\"\",Montliche_Ausgaben_Tabelle[[#This Row],[Tatsächliche Kosten]]=\"\"),\"\",Montliche_Ausgaben_Tabelle[[#This Row],[Erwartete Kosten]]-Montliche_Ausgaben_Tabelle[[#This Row],[Tatsächliche Kosten]])","v":{"v":-100,"d":"-100 €"}},{"$f":"Montliche_Ausgaben_Tabelle[[#This Row],[Tatsächliche Kosten]]","v":400}]
[null,"Hausreinigungsdienst","Wohnen",{"v":200,"d":"200 €"},null,{"$f":"IF(OR(Montliche_Ausgaben_Tabelle[[#This Row],[Erwartete Kosten]]=\"\",Montliche_Ausgaben_Tabelle[[#This Row],[Tatsächliche Kosten]]=\"\"),\"\",Montliche_Ausgaben_Tabelle[[#This Row],[Erwartete Kosten]]-Montliche_Ausgaben_Tabelle[[#This Row],[Tatsächliche Kosten]])","v":""},{"$f":"Montliche_Ausgaben_Tabelle[[#This Row],[Tatsächliche Kosten]]","v":0}]
[null,"Wartung","Wohnen",{"v":200,"d":"200 €"},{"v":150,"d":"150 €"},{"$f":"IF(OR(Montliche_Ausgaben_Tabelle[[#This Row],[Erwartete Kosten]]=\"\",Montliche_Ausgaben_Tabelle[[#This Row],[Tatsächliche Kosten]]=\"\"),\"\",Montliche_Ausgaben_Tabelle[[#This Row],[Erwartete Kosten]]-Montliche_Ausgaben_Tabelle[[#This Row],[Tatsächliche Kosten]])","v":{"v":50,"d":"50 €"}},{"$f":"Montliche_Ausgaben_Tabelle[[#This Row],[Tatsächliche Kosten]]","v":150}]
[null,"Hypothek oder Miete","Wohnen",{"v":1700,"d":"1,700 €"},{"v":1700,"d":"1,700 €"},{"$f":"IF(OR(Montliche_Ausgaben_Tabelle[[#This Row],[Erwartete Kosten]]=\"\",Montliche_Ausgaben_Tabelle[[#This Row],[Tatsächliche Kosten]]=\"\"),\"\",Montliche_Ausgaben_Tabelle[[#This Row],[Erwartete Kosten]]-Montliche_Ausgaben_Tabelle[[#This Row],[Tatsächliche Kosten]])","v":{"v":0,"d":"0 €"}},{"$f":"Montliche_Ausgaben_Tabelle[[#This Row],[Tatsächliche Kosten]]","v":1700}]
[null,"Erdgas/Öl","Wohnen",null,null,{"$f":"IF(OR(Montliche_Ausgaben_Tabelle[[#This Row],[Erwartete Kosten]]=\"\",Montliche_Ausgaben_Tabelle[[#This Row],[Tatsächliche Kosten]]=\"\"),\"\",Montliche_Ausgaben_Tabelle[[#This Row],[Erwartete Kosten]]-Montliche_Ausgaben_Tabelle[[#This Row],[Tatsächliche Kosten]])","v":""},{"$f":"Montliche_Ausgaben_Tabelle[[#This Row],[Tatsächliche Kosten]]","v":0}]
[null,"Internetdienst","Wohnen",{"v":100,"d":"100 €"},{"v":100,"d":"100 €"},{"$f":"IF(OR(Montliche_Ausgaben_Tabelle[[#This Row],[Erwartete Kosten]]=\"\",Montliche_Ausgaben_Tabelle[[#This Row],[Tatsächliche Kosten]]=\"\"),\"\",Montliche_Ausgaben_Tabelle[[#This Row],[Erwartete Kosten]]-Montliche_Ausgaben_Tabelle[[#This Row],[Tatsächliche Kosten]])","v":{"v":0,"d":"0 €"}},{"$f":"Montliche_Ausgaben_Tabelle[[#This Row],[Tatsächliche Kosten]]","v":100}]
[null,"Mobiltelefon","Wohnen",{"v":60,"d":"60 €"},{"v":60,"d":"60 €"},{"$f":"IF(OR(Montliche_Ausgaben_Tabelle[[#This Row],[Erwartete Kosten]]=\"\",Montliche_Ausgaben_Tabelle[[#This Row],[Tatsächliche Kosten]]=\"\"),\"\",Montliche_Ausgaben_Tabelle[[#This Row],[Erwartete Kosten]]-Montliche_Ausgaben_Tabelle[[#This Row],[Tatsächliche Kosten]])","v":{"v":0,"d":"0 €"}},{"$f":"Montliche_Ausgaben_Tabelle[[#This Row],[Tatsächliche Kosten]]","v":60}]
[null,"Festnetztelefon","Wohnen",{"v":35,"d":"35 €"},{"v":39,"d":"39 €"},{"$f":"IF(OR(Montliche_Ausgaben_Tabelle[[#This Row],[Erwartete Kosten]]=\"\",Montliche_Ausgaben_Tabelle[[#This Row],[Tatsächliche Kosten]]=\"\"),\"\",Montliche_Ausgaben_Tabelle[[#This Row],[Erwartete Kosten]]-Montliche_Ausgaben_Tabelle[[#This Row],[Tatsächliche Kosten]])","v":{"v":-4,"d":"-4 €"}},{"$f":"Montliche_Ausgaben_Tabelle[[#This Row],[Tatsächliche Kosten]]","v":39}]
[null,"Zubehör","Wohnen",{"v":40,"d":"40 €"},{"v":55,"d":"55 €"},{"$f":"IF(OR(Montliche_Ausgaben_Tabelle[[#This Row],[Erwartete Kosten]]=\"\",Montliche_Ausgaben_Tabelle[[#This Row],[Tatsächliche Kosten]]=\"\"),\"\",Montliche_Ausgaben_Tabelle[[#This Row],[Erwartete Kosten]]-Montliche_Ausgaben_Tabelle[[#This Row],[Tatsächliche Kosten]])","v":{"v":-15,"d":"-15 €"}},{"$f":"Montliche_Ausgaben_Tabelle[[#This Row],[Tatsächliche Kosten]]","v":55}]
[null,"Müllabfuhr und Recycling","Wohnen",{"v":25,"d":"25 €"},{"v":22,"d":"22 €"},{"$f":"IF(OR(Montliche_Ausgaben_Tabelle[[#This Row],[Erwartete Kosten]]=\"\",Montliche_Ausgaben_Tabelle[[#This Row],[Tatsächliche Kosten]]=\"\"),\"\",Montliche_Ausgaben_Tabelle[[#This Row],[Erwartete Kosten]]-Montliche_Ausgaben_Tabelle[[#This Row],[Tatsächliche Kosten]])","v":{"v":3,"d":"3 €"}},{"$f":"Montliche_Ausgaben_Tabelle[[#This Row],[Tatsächliche Kosten]]","v":22}]
[null,"Wasser und Abwasser","Wohnen",{"v":25,"d":"25 €"},{"v":26,"d":"26 €"},{"$f":"IF(OR(Montliche_Ausgaben_Tabelle[[#This Row],[Erwartete Kosten]]=\"\",Montliche_Ausgaben_Tabelle[[#This Row],[Tatsächliche Kosten]]=\"\"),\"\",Montliche_Ausgaben_Tabelle[[#This Row],[Erwartete Kosten]]-Montliche_Ausgaben_Tabelle[[#This Row],[Tatsächliche Kosten]])","v":{"v":-1,"d":"-1 €"}},{"$f":"Montliche_Ausgaben_Tabelle[[#This Row],[Tatsächliche Kosten]]","v":26}]
[null,"Gesundheit","Versicherungen",{"v":400,"d":"400 €"},{"v":400,"d":"400 €"},{"$f":"IF(OR(Montliche_Ausgaben_Tabelle[[#This Row],[Erwartete Kosten]]=\"\",Montliche_Ausgaben_Tabelle[[#This Row],[Tatsächliche Kosten]]=\"\"),\"\",Montliche_Ausgaben_Tabelle[[#This Row],[Erwartete Kosten]]-Montliche_Ausgaben_Tabelle[[#This Row],[Tatsächliche Kosten]])","v":{"v":0,"d":"0 €"}},{"$f":"Montliche_Ausgaben_Tabelle[[#This Row],[Tatsächliche Kosten]]","v":400}]
[null,"Haus","Versicherungen",{"v":400,"d":"400 €"},{"v":400,"d":"400 €"},{"$f":"IF(OR(Montliche_Ausgaben_Tabelle[[#This Row],[Erwartete Kosten]]=\"\",Montliche_Ausgaben_Tabelle[[#This Row],[Tatsächliche Kosten]]=\"\"),\"\",Montliche_Ausgaben_Tabelle[[#This Row],[Erwartete Kosten]]-Montliche_Ausgaben_Tabelle[[#This Row],[Tatsächliche Kosten]])","v":{"v":0,"d":"0 €"}},{"$f":"Montliche_Ausgaben_Tabelle[[#This Row],[Tatsächliche Kosten]]","v":400}]
[null,"Lebensversicherung","Versicherungen",{"v":100,"d":"100 €"},{"v":100,"d":"100 €"},{"$f":"IF(OR(Montliche_Ausgaben_Tabelle[[#This Row],[Erwartete Kosten]]=\"\",Montliche_Ausgaben_Tabelle[[#This Row],[Tatsächliche Kosten]]=\"\"),\"\",Montliche_Ausgaben_Tabelle[[#This Row],[Erwartete Kosten]]-Montliche_Ausgaben_Tabelle[[#This Row],[Tatsächliche Kosten]])","v":{"v":0,"d":"0 €"}},{"$f":"Montliche_Ausgaben_Tabelle[[#This Row],[Tatsächliche Kosten]]","v":100}]
[null,"Kreditkarte 1","Kredite",{"v":200,"d":"200 €"},{"v":200,"d":"200 €"},{"$f":"IF(OR(Montliche_Ausgaben_Tabelle[[#This Row],[Erwartete Kosten]]=\"\",Montliche_Ausgaben_Tabelle[[#This Row],[Tatsächliche Kosten]]=\"\"),\"\",Montliche_Ausgaben_Tabelle[[#This Row],[Erwartete Kosten]]-Montliche_Ausgaben_Tabelle[[#This Row],[Tatsächliche Kosten]])","v":{"v":0,"d":"0 €"}},{"$f":"Montliche_Ausgaben_Tabelle[[#This Row],[Tatsächliche Kosten]]","v":200}]
[null,"Kreditkarte 2","Kredite",null,null,{"$f":"IF(OR(Montliche_Ausgaben_Tabelle[[#This Row],[Erwartete Kosten]]=\"\",Montliche_Ausgaben_Tabelle[[#This Row],[Tatsächliche Kosten]]=\"\"),\"\",Montliche_Ausgaben_Tabelle[[#This Row],[Erwartete Kosten]]-Montliche_Ausgaben_Tabelle[[#This Row],[Tatsächliche Kosten]])","v":""},{"$f":"Montliche_Ausgaben_Tabelle[[#This Row],[Tatsächliche Kosten]]","v":0}]
[null,"Kreditkarte 3","Kredite",null,null,{"$f":"IF(OR(Montliche_Ausgaben_Tabelle[[#This Row],[Erwartete Kosten]]=\"\",Montliche_Ausgaben_Tabelle[[#This Row],[Tatsächliche Kosten]]=\"\"),\"\",Montliche_Ausgaben_Tabelle[[#This Row],[Erwartete Kosten]]-Montliche_Ausgaben_Tabelle[[#This Row],[Tatsächliche Kosten]])","v":""},{"$f":"Montliche_Ausgaben_Tabelle[[#This Row],[Tatsächliche Kosten]]","v":0}]
[null,"Privat","Kredite",null,null,{"$f":"IF(OR(Montliche_Ausgaben_Tabelle[[#This Row],[Erwartete Kosten]]=\"\",Montliche_Ausgaben_Tabelle[[#This Row],[Tatsächliche Kosten]]=\"\"),\"\",Montliche_Ausgaben_Tabelle[[#This Row],[Erwartete Kosten]]-Montliche_Ausgaben_Tabelle[[#This Row],[Tatsächliche Kosten]])","v":""},{"$f":"Montliche_Ausgaben_Tabelle[[#This Row],[Tatsächliche Kosten]]","v":0}]
[null,"Studium","Kredite",null,null,{"$f":"IF(OR(Montliche_Ausgaben_Tabelle[[#This Row],[Erwartete Kosten]]=\"\",Montliche_Ausgaben_Tabelle[[#This Row],[Tatsächliche Kosten]]=\"\"),\"\",Montliche_Ausgaben_Tabelle[[#This Row],[Erwartete Kosten]]-Montliche_Ausgaben_Tabelle[[#This Row],[Tatsächliche Kosten]])","v":""},{"$f":"Montliche_Ausgaben_Tabelle[[#This Row],[Tatsächliche Kosten]]","v":0}]
[null,"Kleidung","Persönliche Pflege",{"v":150,"d":"150 €"},{"v":140,"d":"140 €"},{"$f":"IF(OR(Montliche_Ausgaben_Tabelle[[#This Row],[Erwartete Kosten]]=\"\",Montliche_Ausgaben_Tabelle[[#This Row],[Tatsächliche Kosten]]=\"\"),\"\",Montliche_Ausgaben_Tabelle[[#This Row],[Erwartete Kosten]]-Montliche_Ausgaben_Tabelle[[#This Row],[Tatsächliche Kosten]])","v":{"v":10,"d":"10 €"}},{"$f":"Montliche_Ausgaben_Tabelle[[#This Row],[Tatsächliche Kosten]]","v":140}]
[null,"Chemische Reinigung","Persönliche Pflege",null,null,{"$f":"IF(OR(Montliche_Ausgaben_Tabelle[[#This Row],[Erwartete Kosten]]=\"\",Montliche_Ausgaben_Tabelle[[#This Row],[Tatsächliche Kosten]]=\"\"),\"\",Montliche_Ausgaben_Tabelle[[#This Row],[Erwartete Kosten]]-Montliche_Ausgaben_Tabelle[[#This Row],[Tatsächliche Kosten]])","v":""},{"$f":"Montliche_Ausgaben_Tabelle[[#This Row],[Tatsächliche Kosten]]","v":0}]
[null,"Haare/Nägel","Persönliche Pflege",null,null,{"$f":"IF(OR(Montliche_Ausgaben_Tabelle[[#This Row],[Erwartete Kosten]]=\"\",Montliche_Ausgaben_Tabelle[[#This Row],[Tatsächliche Kosten]]=\"\"),\"\",Montliche_Ausgaben_Tabelle[[#This Row],[Erwartete Kosten]]-Montliche_Ausgaben_Tabelle[[#This Row],[Tatsächliche Kosten]])","v":""},{"$f":"Montliche_Ausgaben_Tabelle[[#This Row],[Tatsächliche Kosten]]","v":0}]
[null,"Fitnesscenter","Persönliche Pflege",null,null,{"$f":"IF(OR(Montliche_Ausgaben_Tabelle[[#This Row],[Erwartete Kosten]]=\"\",Montliche_Ausgaben_Tabelle[[#This Row],[Tatsächliche Kosten]]=\"\"),\"\",Montliche_Ausgaben_Tabelle[[#This Row],[Erwartete Kosten]]-Montliche_Ausgaben_Tabelle[[#This Row],[Tatsächliche Kosten]])","v":""},{"$f":"Montliche_Ausgaben_Tabelle[[#This Row],[Tatsächliche Kosten]]","v":0}]
[null,"Gesundheit","Persönliche Pflege",null,null,{"$f":"IF(OR(Montliche_Ausgaben_Tabelle[[#This Row],[Erwartete Kosten]]=\"\",Montliche_Ausgaben_Tabelle[[#This Row],[Tatsächliche Kosten]]=\"\"),\"\",Montliche_Ausgaben_Tabelle[[#This Row],[Erwartete Kosten]]-Montliche_Ausgaben_Tabelle[[#This Row],[Tatsächliche Kosten]])","v":""},{"$f":"Montliche_Ausgaben_Tabelle[[#This Row],[Tatsächliche Kosten]]","v":0}]
[null,"Essen","Haustiere",{"v":150,"d":"150 €"},{"v":75,"d":"75 €"},{"$f":"IF(OR(Montliche_Ausgaben_Tabelle[[#This Row],[Erwartete Kosten]]=\"\",Montliche_Ausgaben_Tabelle[[#This Row],[Tatsächliche Kosten]]=\"\"),\"\",Montliche_Ausgaben_Tabelle[[#This Row],[Erwartete Kosten]]-Montliche_Ausgaben_Tabelle[[#This Row],[Tatsächliche Kosten]])","v":{"v":75,"d":"75 €"}},{"$f":"Montliche_Ausgaben_Tabelle[[#This Row],[Tatsächliche Kosten]]","v":75}]
[null,"Körperpflege","Haustiere",{"v":20,"d":"20 €"},{"v":25,"d":"25 €"},{"$f":"IF(OR(Montliche_Ausgaben_Tabelle[[#This Row],[Erwartete Kosten]]=\"\",Montliche_Ausgaben_Tabelle[[#This Row],[Tatsächliche Kosten]]=\"\"),\"\",Montliche_Ausgaben_Tabelle[[#This Row],[Erwartete Kosten]]-Montliche_Ausgaben_Tabelle[[#This Row],[Tatsächliche Kosten]])","v":{"v":-5,"d":"-5 €"}},{"$f":"Montliche_Ausgaben_Tabelle[[#This Row],[Tatsächliche Kosten]]","v":25}]
[null,"Arztkosten","Haustiere",null,null,{"$f":"IF(OR(Montliche_Ausgaben_Tabelle[[#This Row],[Erwartete Kosten]]=\"\",Montliche_Ausgaben_Tabelle[[#This Row],[Tatsächliche Kosten]]=\"\"),\"\",Montliche_Ausgaben_Tabelle[[#This Row],[Erwartete Kosten]]-Montliche_Ausgaben_Tabelle[[#This Row],[Tatsächliche Kosten]])","v":""},{"$f":"Montliche_Ausgaben_Tabelle[[#This Row],[Tatsächliche Kosten]]","v":0}]
[null,"Spielzeuge","Haustiere",null,null,{"$f":"IF(OR(Montliche_Ausgaben_Tabelle[[#This Row],[Erwartete Kosten]]=\"\",Montliche_Ausgaben_Tabelle[[#This Row],[Tatsächliche Kosten]]=\"\"),\"\",Montliche_Ausgaben_Tabelle[[#This Row],[Erwartete Kosten]]-Montliche_Ausgaben_Tabelle[[#This Row],[Tatsächliche Kosten]])","v":""},{"$f":"Montliche_Ausgaben_Tabelle[[#This Row],[Tatsächliche Kosten]]","v":0}]
[null,"Anlagekonto","Spareinlagen",{"v":200,"d":"200 €"},{"v":200,"d":"200 €"},{"$f":"IF(OR(Montliche_Ausgaben_Tabelle[[#This Row],[Erwartete Kosten]]=\"\",Montliche_Ausgaben_Tabelle[[#This Row],[Tatsächliche Kosten]]=\"\"),\"\",Montliche_Ausgaben_Tabelle[[#This Row],[Erwartete Kosten]]-Montliche_Ausgaben_Tabelle[[#This Row],[Tatsächliche Kosten]])","v":{"v":0,"d":"0 €"}},{"$f":"Montliche_Ausgaben_Tabelle[[#This Row],[Tatsächliche Kosten]]","v":200}]
[null,"Altersvorsorgekonto","Spareinlagen",null,null,{"$f":"IF(OR(Montliche_Ausgaben_Tabelle[[#This Row],[Erwartete Kosten]]=\"\",Montliche_Ausgaben_Tabelle[[#This Row],[Tatsächliche Kosten]]=\"\"),\"\",Montliche_Ausgaben_Tabelle[[#This Row],[Erwartete Kosten]]-Montliche_Ausgaben_Tabelle[[#This Row],[Tatsächliche Kosten]])","v":""},{"$f":"Montliche_Ausgaben_Tabelle[[#This Row],[Tatsächliche Kosten]]","v":0}]
[null,"EkSt","Steuern",{"v":300,"d":"300 €"},{"v":300,"d":"300 €"},{"$f":"IF(OR(Montliche_Ausgaben_Tabelle[[#This Row],[Erwartete Kosten]]=\"\",Montliche_Ausgaben_Tabelle[[#This Row],[Tatsächliche Kosten]]=\"\"),\"\",Montliche_Ausgaben_Tabelle[[#This Row],[Erwartete Kosten]]-Montliche_Ausgaben_Tabelle[[#This Row],[Tatsächliche Kosten]])","v":{"v":0,"d":"0 €"}},{"$f":"Montliche_Ausgaben_Tabelle[[#This Row],[Tatsächliche Kosten]]","v":300}]
[null,"Kommunalsteuern","Steuern",null,null,{"$f":"IF(OR(Montliche_Ausgaben_Tabelle[[#This Row],[Erwartete Kosten]]=\"\",Montliche_Ausgaben_Tabelle[[#This Row],[Tatsächliche Kosten]]=\"\"),\"\",Montliche_Ausgaben_Tabelle[[#This Row],[Erwartete Kosten]]-Montliche_Ausgaben_Tabelle[[#This Row],[Tatsächliche Kosten]])","v":""},{"$f":"Montliche_Ausgaben_Tabelle[[#This Row],[Tatsächliche Kosten]]","v":0}]
[null,"Bundesland","Steuern",null,null,{"$f":"IF(OR(Montliche_Ausgaben_Tabelle[[#This Row],[Erwartete Kosten]]=\"\",Montliche_Ausgaben_Tabelle[[#This Row],[Tatsächliche Kosten]]=\"\"),\"\",Montliche_Ausgaben_Tabelle[[#This Row],[Erwartete Kosten]]-Montliche_Ausgaben_Tabelle[[#This Row],[Tatsächliche Kosten]])","v":""},{"$f":"Montliche_Ausgaben_Tabelle[[#This Row],[Tatsächliche Kosten]]","v":0}]
[null,"Bus oder Mitfahrzentrale","Verkehrsmittel",{"v":100,"d":"100 €"},{"v":150,"d":"150 €"},{"$f":"IF(OR(Montliche_Ausgaben_Tabelle[[#This Row],[Erwartete Kosten]]=\"\",Montliche_Ausgaben_Tabelle[[#This Row],[Tatsächliche Kosten]]=\"\"),\"\",Montliche_Ausgaben_Tabelle[[#This Row],[Erwartete Kosten]]-Montliche_Ausgaben_Tabelle[[#This Row],[Tatsächliche Kosten]])","v":{"v":-50,"d":"-50 €"}},{"$f":"Montliche_Ausgaben_Tabelle[[#This Row],[Tatsächliche Kosten]]","v":150}]
[null,"Brennstoff","Verkehrsmittel",{"v":450,"d":"450 €"},{"v":400,"d":"400 €"},{"$f":"IF(OR(Montliche_Ausgaben_Tabelle[[#This Row],[Erwartete Kosten]]=\"\",Montliche_Ausgaben_Tabelle[[#This Row],[Tatsächliche Kosten]]=\"\"),\"\",Montliche_Ausgaben_Tabelle[[#This Row],[Erwartete Kosten]]-Montliche_Ausgaben_Tabelle[[#This Row],[Tatsächliche Kosten]])","v":{"v":50,"d":"50 €"}},{"$f":"Montliche_Ausgaben_Tabelle[[#This Row],[Tatsächliche Kosten]]","v":400}]
[null,"Versicherungen","Verkehrsmittel",{"v":300,"d":"300 €"},{"v":300,"d":"300 €"},{"$f":"IF(OR(Montliche_Ausgaben_Tabelle[[#This Row],[Erwartete Kosten]]=\"\",Montliche_Ausgaben_Tabelle[[#This Row],[Tatsächliche Kosten]]=\"\"),\"\",Montliche_Ausgaben_Tabelle[[#This Row],[Erwartete Kosten]]-Montliche_Ausgaben_Tabelle[[#This Row],[Tatsächliche Kosten]])","v":{"v":0,"d":"0 €"}},{"$f":"Montliche_Ausgaben_Tabelle[[#This Row],[Tatsächliche Kosten]]","v":300}]
[null,"Kfz-Steuer ","Verkehrsmittel",{"v":25,"d":"25 €"},{"v":25,"d":"25 €"},{"$f":"IF(OR(Montliche_Ausgaben_Tabelle[[#This Row],[Erwartete Kosten]]=\"\",Montliche_Ausgaben_Tabelle[[#This Row],[Tatsächliche Kosten]]=\"\"),\"\",Montliche_Ausgaben_Tabelle[[#This Row],[Erwartete Kosten]]-Montliche_Ausgaben_Tabelle[[#This Row],[Tatsächliche Kosten]])","v":{"v":0,"d":"0 €"}},{"$f":"Montliche_Ausgaben_Tabelle[[#This Row],[Tatsächliche Kosten]]","v":25}]
[null,"Wartung","Verkehrsmittel",{"v":100,"d":"100 €"},{"v":50,"d":"50 €"},{"$f":"IF(OR(Montliche_Ausgaben_Tabelle[[#This Row],[Erwartete Kosten]]=\"\",Montliche_Ausgaben_Tabelle[[#This Row],[Tatsächliche Kosten]]=\"\"),\"\",Montliche_Ausgaben_Tabelle[[#This Row],[Erwartete Kosten]]-Montliche_Ausgaben_Tabelle[[#This Row],[Tatsächliche Kosten]])","v":{"v":50,"d":"50 €"}},{"$f":"Montliche_Ausgaben_Tabelle[[#This Row],[Tatsächliche Kosten]]","v":50}]
[null,"Parkgebühren","Verkehrsmittel",null,null,{"$f":"IF(OR(Montliche_Ausgaben_Tabelle[[#This Row],[Erwartete Kosten]]=\"\",Montliche_Ausgaben_Tabelle[[#This Row],[Tatsächliche Kosten]]=\"\"),\"\",Montliche_Ausgaben_Tabelle[[#This Row],[Erwartete Kosten]]-Montliche_Ausgaben_Tabelle[[#This Row],[Tatsächliche Kosten]])","v":""},{"$f":"Montliche_Ausgaben_Tabelle[[#This Row],[Tatsächliche Kosten]]","v":0}]
[null,"KFZ-Kosten","Verkehrsmittel",{"v":450,"d":"450 €"},{"v":450,"d":"450 €"},{"$f":"IF(OR(Montliche_Ausgaben_Tabelle[[#This Row],[Erwartete Kosten]]=\"\",Montliche_Ausgaben_Tabelle[[#This Row],[Tatsächliche Kosten]]=\"\"),\"\",Montliche_Ausgaben_Tabelle[[#This Row],[Erwartete Kosten]]-Montliche_Ausgaben_Tabelle[[#This Row],[Tatsächliche Kosten]])","v":{"v":0,"d":"0 €"}},{"$f":"Montliche_Ausgaben_Tabelle[[#This Row],[Tatsächliche Kosten]]","v":450}]

{"sheet":"Zusätzliche Daten","index":4,"n_rows":17,"n_cols":9,"rows_kept":17}
[null,"ZUSÄTZLICHE DATEN",{"$nulls":3}," "]
[null,"PivotTable für das Budgetdiagramm",null,null,"Kategorienliste"]
[]
[null,"Kategorien","Kosten",null,"Wenn Sie eine Kategorie hinzufügen möchten, geben Sie sie unten ein",{"$nulls":3},"`"]
[null,"Haustiere",{"v":100,"d":"100 €"},null,"Kinder"]
[null,"Geschenke und Spenden",{"v":125,"d":"125 €"},null,"Unterhaltung"]
[null,"Kinder",{"v":140,"d":"140 €"},null,"Essen"]
[null,"Persönliche Pflege",{"v":140,"d":"140 €"},null,"Geschenke und Spenden"]
[null,"Spareinlagen",{"v":200,"d":"200 €"},null,"Wohnen"]
[null,"Kredite",{"v":200,"d":"200 €"},null,"Versicherungen"]
[null,"Steuern",{"v":300,"d":"300 €"},null,"Kredite"]
[null,"Unterhaltung",{"v":358,"d":"358 €"},null,"Persönliche Pflege"]
[null,"Versicherungen",{"v":900,"d":"900 €"},null,"Haustiere"]
[null,"Essen",{"v":1320,"d":"1,320 €"},null,"Spareinlagen"]
[null,"Verkehrsmittel",{"v":1375,"d":"1,375 €"},null,"Steuern"]
[null,"Wohnen",{"v":2702,"d":"2,702 €"},null,"Transport"]
[null,"Grand Total",{"v":7860,"d":"7,860 €"}]